fUSD/lending_fUSD_20260103
["ID","MTS","AMOUNT","RATE_DAILY","PERIOD"]
[400358410,1767430247412,-154.0,0.00027195,3]
[400358411,1767430247422,-151.0,0.00027195,3]
[400358412,1767430247431,-861.99144917,0.00027195,3]
[400358413,1767430247441,-152.0,0.00027195,3]
[400358414,1767430247451,-1259.0,0.00027195,3]
[400358415,1767430247460,-154.0,0.00027195,3]
[400358416,1767430247471,-151.0,0.00027195,3]
[400358417,1767430247480,-152.0,0.00027195,3]
[400358418,1767430247490,-1259.0,0.00027195,3]
[400358419,1767430247500,-154.0,0.00027195,3]
[400358420,1767430247509,-151.0,0.00027195,3]
[400358421,1767430247519,-152.0,0.00027195,3]
[400358422,1767430247528,-1259.0,0.00027195,3]
[400358423,1767430247537,-154.0,0.00027195,3]
[400358424,1767430247547,-151.0,0.00027195,3]
[400358425,1767430247556,-152.0,0.00027195,3]
[400358426,1767430247566,-154.0,0.00027195,3]
[400358427,1767430247575,-1247.0,0.00027195,3]
[400358428,1767430247586,-152.0,0.00027195,3]
[400358429,1767430247595,-302.0,0.00027195,3]
[400358430,1767430247605,-218.87574282,0.00027195,3]
[400358431,1767430247614,-152.0,0.00027195,3]
[400358432,1767430247624,-152.0,0.00027195,3]
[400358433,1767430247634,-152.0,0.00027195,3]
[400358434,1767430247644,-152.0,0.00027195,3]
[400358435,1767430247654,-152.0,0.00027195,3]
[400358436,1767430247663,-152.0,0.00027195,3]
[400358437,1767430247673,-152.0,0.00027195,3]
[400358438,1767430247683,-152.0,0.00027195,3]
[400358439,1767430247693,-152.0,0.00027195,3]
[400358440,1767430247702,-152.0,0.00027195,3]
[400358441,1767430247711,-152.0,0.00027195,3]
[400358442,1767430247721,-152.0,0.00027195,3]
[400358443,1767430247731,-152.0,0.00027195,3]
[400358444,1767430247743,-152.0,0.00027195,3]
[400358445,1767430247753,-152.0,0.00027195,3]
[400358446,1767430247763,-152.0,0.00027195,3]
[400358447,1767430247773,-152.0,0.00027195,3]
[400358448,1767430247783,-152.0,0.00027195,3]
[400358449,1767430247793,-152.0,0.00027195,3]
[400358450,1767430247803,-152.0,0.00027195,3]
[400358451,1767430247813,-152.0,0.00027195,3]
[400358452,1767430247824,-152.0,0.00027195,3]
[400358453,1767430247833,-152.0,0.00027195,3]
[400358454,1767430247844,-152.0,0.00027195,3]
[400358455,1767430247854,-152.0,0.00027195,3]
[400358456,1767430247864,-152.0,0.00027195,3]
[400358457,1767430247873,-152.0,0.00027195,3]
[400358458,1767430247883,-152.0,0.00027195,3]
[400358459,1767430247892,-286.99344643,0.00027195,3]
[400358460,1767430247902,-166.34938281,0.00027195,2]
[400358461,1767430247912,-7440.83630817,0.00027257,3]
[400358462,1767430247922,-19100.78051326,0.00027267,2]
[400358463,1767430247931,-186.861402,0.00027267,7]
[400358464,1767430247940,-167.16,0.00027313,2]
[400358465,1767430247951,-412.2,0.00027397,2]
[400358466,1767430247961,-382.6,0.00027397,6]
[400358467,1767430247971,-400.0,0.00027397,3]
[400358468,1767430247980,-313.15552207,0.00027397,6]
[400358469,1767430247990,-208.448862,0.00027397,7]
[400358470,1767430247999,-500.0,0.00027397,2]
[400358471,1767430248009,-500.0,0.00027397,2]
[400358472,1767430248019,-500.0,0.00027397,2]
[400358473,1767430248029,-500.0,0.00027397,2]
[400358474,1767430248039,-500.0,0.00027397,2]
[400358475,1767430248049,-500.0,0.00027397,2]
[400358476,1767430248059,-500.0,0.00027397,2]
[400358477,1767430248069,-500.0,0.00027397,2]
[400358478,1767430248083,-500.0,0.00027397,2]
[400358479,1767430248105,-500.0,0.00027397,2]
[400358480,1767430248117,-500.0,0.00027397,2]
[400358481,1767430248129,-500.0,0.00027397,2]
[400358482,1767430248139,-500.0,0.00027397,2]
[400358483,1767430248149,-186.59265123,0.00027397,2]
[400358484,1767430248159,-151.0,0.00027397,2]
[400358485,1767430248169,-258.74,0.00027397,30]
[400358486,1767430248179,-179.099074,0.00027397,7]
[400358487,1767430248189,-180.300457,0.00027397,7]
[400358488,1767430248202,-180.300457,0.00027397,7]
[400358489,1767430248222,-180.300457,0.00027397,7]
[400358490,1767430248242,-180.300457,0.00027397,7]
[400358491,1767430248254,-180.300457,0.00027397,7]
[400358492,1767430248264,-180.300457,0.00027397,7]
[400358493,1767430248274,-180.300457,0.00027397,7]
[400358494,1767430248285,-180.300457,0.00027397,7]
[400358495,1767430248295,-180.300457,0.00027397,7]
[400358496,1767430248306,-180.300457,0.00027397,7]
[400358497,1767430248317,-180.300457,0.00027397,7]
[400358498,1767430248327,-180.300457,0.00027397,7]
[400358499,1767430248337,-180.300457,0.00027397,7]
[400358500,1767430248346,-180.300457,0.00027397,7]
[400358501,1767430248356,-180.300457,0.00027397,7]
[400358502,1767430248366,-180.300457,0.00027397,7]
[400358503,1767430248375,-180.300457,0.00027397,7]
[400358504,1767430248385,-180.300457,0.00027397,7]
[400358505,1767430248395,-180.300457,0.00027397,7]
[400358506,1767430248404,-180.300448,0.00027397,7]
[400358507,1767430248414,-500.0,0.00027397,20]
[400358508,1767430248423,-151.725547,0.00027397,7]
[400358509,1767430248433,-3812.4,0.00027397,2]
[400358510,1767430248443,-9999.99,0.00027397,2]
[400358511,1767430248453,-4999.99,0.00027397,2]
[400358512,1767430248463,-150.99,0.00027397,2]
[400358513,1767430248473,-5606.77,0.00027397,2]
[400358514,1767430248483,-150.99,0.00027397,2]
[400358515,1767430248494,-14119.14,0.00027397,2]
[400358516,1767430248503,-4491.15,0.00027397,2]
[400358517,1767430248512,-15330.09,0.00027397,10]
[400358518,1767430248522,-8511.4,0.00027397,2]
[400358519,1767430248532,-9999.99,0.00027397,2]
[400358520,1767430248542,-1271.61,0.00027397,2]
[400358521,1767430248551,-1210.2,0.00027397,2]
[400358522,1767430248562,-201.91382999,0.0002749,2]
[400358523,1767430248571,-1041.0,0.000275,2]
[400358524,1767430248581,-5530.0,0.000275,3]
[400358525,1767430248591,-168.0,0.0002781,2]
[400358526,1767430248602,-598.71305619,0.00027884,2]
[400358527,1767430248614,-5530.0,0.00028,5]
[400358528,1767430248623,-5000.80065909,0.00028,2]
[400358529,1767430248633,-7746.25,0.00028075,2]
[400358530,1767430248643,-261.8886965,0.00028395,2]
[400358531,1767430248653,-1162.55171246,0.00028405,2]
[400358532,1767430248663,-178.83,0.00028491,14]
[400358533,1767430248673,-167.16,0.00028667,2]
[400358534,1767430248683,-151.0,0.00028766,2]
[400358535,1767430248694,-1030.58071057,0.00028791,2]
[400358536,1767430248704,-3350.53722175,0.000288,7]
[400358537,1767430248714,-12598.16804212,0.00029101,2]
[400358538,1767430248724,-181.17919474,0.00029226,14]
[400358539,1767430248734,-613.0,0.0002937,2]
[400358540,1767430248750,-3461.0,0.0002937,2]
[400358541,1767430248759,-1329.0,0.0002937,2]
[400358542,1767430248769,-1265.0,0.0002937,2]
[400358543,1767430248779,-433.0,0.0002937,2]
[400358544,1767430248790,-565.0,0.0002937,2]
[400358545,1767430248800,-4429.05,0.0002937,2]
[400358546,1767430248811,-4814.0,0.0002937,2]
[400358547,1767430248822,-2434.0,0.0002937,2]
[400358548,1767430248831,-285.28195794,0.00029746,2]
[400358549,1767430248841,-505.0,0.00029877,2]
[400358550,1767430248851,-19100.78051326,0.00029889,2]
[400358551,1767430248860,-800.0,0.000299,5]
[400358552,1767430248870,-4588.94617122,0.0003,5]
[400358553,1767430248879,-978.0,0.000305,2]
[400358554,1767430248889,-306.0,0.000305,2]
[400358555,1767430248898,-893.0,0.000305,2]
[400358556,1767430248908,-171.56,0.000307,30]
[400358557,1767430248917,-238.265299,0.00030996,5]
[400358558,1767430248927,-505.0,0.00031016,3]
[400358559,1767430248936,-1041.65683154,0.000312,2]
[400358560,1767430248945,-258.74,0.00031723,30]
[400358561,1767430248955,-3099.60591678,0.00031845,2]
[400358562,1767430248965,-12598.16804212,0.00031881,2]
[400358563,1767430248975,-261.8886965,0.00032055,5]
[400358564,1767430248985,-505.0,0.00032155,4]
[400358565,1767430248996,-1131.25724168,0.00032219,20]
[400358566,1767430249006,-1093.63656701,0.00032219,20]
[400358567,1767430249016,-1079.52386908,0.00032219,20]
[400358568,1767430249026,-1135.53213533,0.00032219,20]
[400358569,1767430249036,-1089.12223268,0.00032219,20]
[400358570,1767430249045,-1095.36533571,0.00032219,20]
[400358571,1767430249055,-1085.14610134,0.00032219,20]
[400358572,1767430249065,-1125.10789669,0.00032219,20]
[400358573,1767430249075,-1110.78177279,0.00032219,20]
[400358574,1767430249084,-1041.87077684,0.00032219,20]
[400358575,1767430249093,-1040.33933291,0.00032219,20]
[400358576,1767430249103,-1008.91002831,0.00032219,20]
[400358577,1767430249112,-1301.68151564,0.00032219,20]
[400358578,1767430249122,-613.0,0.0003237,2]
[400358579,1767430249131,-1329.0,0.0003237,2]
[400358580,1767430249141,-1265.0,0.0003237,2]
[400358581,1767430249151,-4814.0,0.0003237,2]
[400358582,1767430249161,-2434.0,0.0003237,2]
[400358583,1767430249171,-285.28195794,0.00032397,2]
[400358584,1767430249180,-19100.78051326,0.00032511,2]
[400358585,1767430249190,-200.0,0.0003287,2]
[400358586,1767430249199,-200.0,0.00032877,2]
[400358587,1767430249209,-200.0,0.00032877,2]
[400358588,1767430249219,-158.29,0.000329,14]
[400358589,1767430249229,-537.215282,0.00033,8]
[400358590,1767430249239,-343.49,0.00033165,2]
[400358591,1767430249249,-200.0,0.00033199,2]
[400358592,1767430249259,-200.0,0.00033206,2]
[400358593,1767430249269,-200.0,0.00033206,2]
[400358594,1767430249279,-505.0,0.00033294,5]
[400358595,1767430249288,-158.49,0.000333,14]
[400358596,1767430249298,-200.0,0.00033531,2]
[400358597,1767430249309,-200.0,0.00033538,2]
[400358598,1767430249319,-200.0,0.00033538,2]
[400358599,1767430249329,-200.0,0.00033866,2]
[400358600,1767430249340,-175.26073617,0.00033871,21]
[400358601,1767430249350,-200.0,0.00033873,2]
[400358602,1767430249360,-200.0,0.00033873,2]
[400358603,1767430249370,-200.0,0.00034212,2]
[400358604,1767430249379,-200.0,0.00034212,2]
[400358605,1767430249390,-160.2054144,0.00034371,2]
[400358606,1767430249400,-505.0,0.00034433,7]
[400358607,1767430249411,-12598.16804212,0.00034661,2]
[400358608,1767430249423,-465.99,0.00034877,2]
[400358609,1767430249443,-357.58,0.00034877,2]
[400358610,1767430249460,-178.84,0.00034877,2]
[400358611,1767430249473,-465.99,0.00034877,2]
[400358612,1767430249484,-178.84,0.00034877,2]
[400358613,1767430249495,-465.99,0.00034877,2]
[400358614,1767430249507,-465.99,0.00034877,2]
[400358615,1767430249518,-178.84,0.00034877,2]
[400358616,1767430249530,-178.66,0.00034877,2]
[400358617,1767430249541,-1004.0,0.00035,12]
[400358618,1767430249553,-360.0,0.00035,30]
[400358619,1767430249565,-285.28195794,0.00035048,2]
[400358620,1767430249576,-19100.78051326,0.00035133,2]
[400358621,1767430249587,-2511.871,0.00035349,41]
[400358622,1767430249598,-155.682,0.00035349,41]
[400358623,1767430249607,-613.0,0.0003537,2]
[400358624,1767430249618,-1329.0,0.0003537,2]
[400358625,1767430249628,-988.154,0.0003537,2]
[400358626,1767430249638,-4814.0,0.0003537,2]
[400358627,1767430249649,-505.0,0.00035573,8]
[400358628,1767430249660,-618.3,0.00035616,50]
[400358629,1767430249671,-573.9,0.00035616,15]
[400358630,1767430249682,-600.0,0.00035616,44]
[400358631,1767430249692,-469.73328311,0.00035616,46]
[400358632,1767430249702,-446.99580003,0.00035616,7]
[400358633,1767430249711,-258.74,0.00036049,30]
[400358634,1767430249721,-5000.0,0.0003606,2]
[400358635,1767430249731,-2500.0,0.00036164,2]
[400358636,1767430249743,-5000.0,0.00036349,2]
[400358637,1767430249756,-981.82,0.00036406,2]
[400358638,1767430249766,-5000.0,0.00036454,2]
[400358639,1767430249776,-5000.0,0.00036492,2]
[400358640,1767430249786,-1507.82,0.00036516,2]
[400358641,1767430249798,-2558.01,0.000366,2]
[400358642,1767430249808,-5000.0,0.00036609,2]
[400358643,1767430249818,-3162.43629724,0.00036609,2]
[400358645,1767430535818,164.99,0.00016712,2]
[400358648,1767430568055,393.92,0.00016721,2]
[400358649,1767430568264,393.92,0.00017601,2]
[400358715,1767431437736,-307.0,0.00018381,2]
[400358716,1767431437748,-273.8759,0.00018381,2]
[400358717,1767431437759,-250.0,0.00018394,2]
[400358718,1767431437770,-250.0,0.00018436,2]
[400358719,1767431437782,-393.92,0.00018481,2]
[400358720,1767431437792,-494.51525855,0.00018481,2]
[400358721,1767431437803,-393.92,0.00019361,2]
[400358722,1767431437814,-151.0,0.00019661,2]
[400358723,1767431437824,-151.0,0.00019677,2]
[400358724,1767431437834,-151.0,0.00019861,2]
[400358725,1767431437844,-232.72597339,0.00020219,2]
[400358726,1767431437857,-207.90220037,0.00020219,2]
[400358727,1767431437867,-250.0,0.00020219,2]
[400358728,1767431437878,-44.61246662,0.00020241,2]
[400358748,1767431439784,-349.30753338,0.00020241,2]
[400358749,1767431439795,-150.0,0.00021,2]
[400358750,1767431439805,-173.86,0.00021,2]
[400358751,1767431439815,-387.64172921,0.00021121,2]
[400358752,1767431439945,-6.27827079,0.00021121,2]
[400358753,1767431439955,-300.0,0.00021362,2]
[400358754,1767431439966,-232.66692198,0.00021363,2]
[400358755,1767431440105,-4303.10756718,0.00021363,2]
[400358767,1767431443142,-713.34679703,0.00021363,2]
[400358768,1767431443155,-753.08061983,0.00021363,2]
[400358769,1767431443166,-393.92,0.00022001,2]
[400358770,1767431443176,-1045.27,0.00022562,2]
[400358771,1767431443186,-393.92,0.00022881,2]
[400358772,1767431443196,-393.92,0.00023761,2]
[400358773,1767431443207,-393.92,0.00024642,2]
[400358774,1767431443216,-1603.92449952,0.00024965,2]
[400358775,1767431443226,-393.92,0.00025522,2]
[400358776,1767431443237,-393.92,0.00026402,2]
[400358777,1767431443247,-301.8373847,0.00026688,2]
[400358778,1767431443257,-166.66,0.00027072,30]
[400358779,1767431443267,-14331.92128583,0.00027183,2]
[400358780,1767431443281,-2818.707,0.00027187,15]
[400358781,1767431443292,-156.825,0.00027187,15]
[400358782,1767431443303,-805.0,0.00027187,2]
[400358783,1767431443313,-393.92,0.00027282,2]
[400358784,1767431443323,-2476.75,0.00027397,2]
[400358785,1767431443334,-902.04,0.00027397,2]
[400358786,1767431443344,-999.99,0.00027397,2]
[400358787,1767431443355,-150.99,0.00027397,2]
[400358788,1767431443366,-9999.99,0.00027397,2]
[400358789,1767431443376,-166.66,0.00027642,30]
[400358790,1767431443387,-393.92,0.00028162,2]
[400358791,1767431443397,-166.66,0.00028212,30]
[400358792,1767431443407,-613.0,0.0002823,2]
[400358793,1767431443417,-3463.0,0.0002823,2]
[400358794,1767431443428,-202.48201112,0.0002823,2]
[400358795,1767431443680,-1200.51798888,0.0002823,2]
[400358796,1767431443690,-271.26466689,0.0002823,2]
[400358797,1767431443708,-662.20471315,0.0002823,2]
[400358798,1767431443761,-41.15129242,0.0002823,2]
[400358799,1767431443773,-348.08652961,0.0002823,2]
[400358800,1767431444062,-6.29279793,0.0002823,2]
[400358801,1767431444072,-433.0,0.0002823,2]
[400358802,1767431444082,-1265.0,0.0002823,2]
[400358803,1767431444092,-6543.0,0.0002823,2]
[400358804,1767431444102,-2434.0,0.0002823,2]
[400358805,1767431444509,-4814.0,0.0002823,2]
[400358806,1767431444538,-598.572,0.0002823,2]
[400358807,1767431444563,-200.0,0.00028488,2]
[400358808,1767431444574,-151.0,0.00028594,3]
[400358809,1767431444584,-151.0,0.00028594,3]
[400358810,1767431444594,-151.0,0.00028594,3]
[400358811,1767431444604,-302.0,0.00028594,3]
[400358812,1767431444614,-166.66,0.00028782,30]
[400358814,1767431444623,-7935.48,0.00028799,2]
[400358815,1767431444633,-200.0,0.00028864,2]
[400358816,1767431444643,-5000.0,0.00028869,2]
[400358817,1767431444653,-182.36,0.00028951,2]
[400358818,1767431444662,-393.92,0.00029042,2]
[400358819,1767431444672,-166.66,0.00029146,2]
[400358820,1767431444682,-166.66,0.00029352,30]
[400358821,1767431444691,-506.0,0.00029877,2]
[400358822,1767431444703,-393.92,0.00029922,2]
[400358823,1767431444715,-166.66,0.00029922,30]
[400358824,1767431444724,-166.66,0.00030108,2]
[400358825,1767431444735,-393.92,0.00030802,2]
[400358826,1767431444746,-166.66,0.0003107,2]
[400358827,1767431444756,-506.0,0.00031196,3]
[400358828,1767431444766,-1329.0,0.0003123,2]
[400358829,1767431444777,-422.49,0.0003123,2]
[400358830,1767431444787,-2434.0,0.0003123,2]
[400358831,1767431444796,-4814.0,0.0003123,2]
[400358832,1767431444806,-393.92,0.00031682,2]
[400358833,1767431444815,-166.66,0.00032032,2]
[400358834,1767431444825,-7941.91,0.00032363,2]
[400358835,1767431444834,-506.0,0.00032515,5]
[400358836,1767431444843,-393.92,0.00032562,2]
[400358837,1767431444853,-166.66,0.00032994,2]
[400358838,1767431444863,-393.92,0.00033442,2]
[400358839,1767431444873,-506.0,0.00033834,6]
[400358840,1767431444882,-166.66,0.00033956,2]
[400358841,1767431444892,-1329.0,0.0003423,2]
[400358842,1767431444901,-862.768,0.0003423,2]
[400358843,1767431444916,-4814.0,0.0003423,2]
[400358844,1767431444925,-160.2054144,0.00034244,2]
[400358845,1767431444935,-816.95,0.00034286,120]
[400358846,1767431444944,-506.0,0.00035153,8]
[400358847,1767431444954,-236.2929,0.00035362,2]
[400358848,1767431444964,-1285.3194,0.00035362,2]
[400358849,1767431444974,-3127.7246,0.00035362,2]
[400358850,1767431444984,-2500.0,0.00035362,2]
[400358851,1767431444993,-151.0,0.00035369,14]
[400358852,1767431445003,-8837.47474459,0.00035372,2]
[400358853,1767431445013,-171.41975342,0.00035411,2]
[400358854,1767431445023,-175.26073617,0.00035411,23]
[400358855,1767431445033,-21058.9706836,0.00035452,3]
[400358856,1767431445042,-167.74065352,0.00035461,7]
[400358857,1767431445052,-312.89706002,0.00035461,7]
[400358858,1767431445062,-445.47001304,0.00035461,7]
[400358859,1767431445071,-4211.79413671,0.00035462,3]
[400358860,1767431445082,-197954.324425,0.00035462,3]
[400358861,1767431445091,-201.91382998,0.00035462,2]
[400358862,1767431445101,-6036.0,0.00035472,5]
[400358863,1767431445111,-151.0,0.00035472,31]
[400358864,1767431445120,-487406.84416406,0.00035472,2]
[400358899,1767431970692,250.0,0.00017,2]
[400358911,1767432032778,2899.34,0.00032679,120]
[400358918,1767432263258,411.213,0.000178,2]
[400358921,1767432324588,-432.02478493,0.00018,2]
[400358922,1767432326875,-209.38044353,0.00018,2]
[400358923,1767432330152,1379.64334296,0.00016,2]
[400358924,1767432330848,-243.41131546,0.00018,2]
[400358928,1767432354657,-187.31206433,0.00018,2]
[400358929,1767432359360,-244.89063938,0.00018,2]
[400358930,1767432367934,1000.0,0.00017999,2]
[400358931,1767432368527,-182.61842055,0.00018,2]
[400358932,1767432371525,-243.7905508,0.00018,2]
[400358933,1767432374257,-392.0,0.00018,2]
[400358935,1767432413308,3006.32365704,0.000162,5]
[400358936,1767432413336,1993.68256758,0.000162,5]
[400358939,1767432421548,300.0,0.00017999,2]
[400358940,1767432422686,550.0,0.00017999,2]
[400358947,1767432481239,300.0,0.00017999,2]
[400358950,1767432493515,1200.0,0.00017999,2]
[400358963,1767432601298,300.0,0.00017999,2]
[400358974,1767432631751,-805.18595638,0.00018,2]
[400358976,1767432631860,-480.42463562,0.00018,2]
[400358977,1767432631872,-1647.73137276,0.00018,2]
[400358978,1767432631915,-547.77308168,0.00018,2]
[400359016,1767432637780,-1294.81404362,0.00018,2]
[400359017,1767432637793,-24931.22351143,0.00018,2]
[400359018,1767432637835,-8049.12050542,0.00018,2]
[400359019,1767432637893,-24505.56196635,0.00018,2]
[400359020,1767432637905,-5739.18585998,0.00018,2]
[400359021,1767432637917,-13723.7384882,0.00018,2]
[400359022,1767432637947,-3082.0258149,0.00018,2]
[400359023,1767432638004,-1188.74622491,0.00018,2]
[400359217,1767432639999,-449.05,0.00018,2]
[400359219,1767432640011,-458.1187264,0.00018,2]
[400359221,1767432640022,-422.30590592,0.00018,2]
[400359260,1767432643333,-1361.07983159,0.00018,2]
[400359261,1767432644050,-991.47560001,0.00018,2]
[400359269,1767432645893,-1019.99999998,0.00018,2]
[400359276,1767432721688,300.0,0.00017999,2]
[400359277,1767432733581,151.0,0.00017989,2]
[400359278,1767432734257,151.0,0.00017989,2]
[400359279,1767432734950,247.12292823,0.00017989,2]
[400359281,1767432782254,300.0,0.00017999,2]
[400359284,1767432901161,300.0,0.00017999,2]
[400359285,1767432901513,1200.0,0.00017999,2]
[400359287,1767433021352,170.0,0.00017999,2]
[400359288,1767433072885,349.33,0.00013699,2]
[400359292,1767433092049,250.0,0.00032876,120]
[400359293,1767433092954,1200.0,0.00017999,2]
[400359294,1767433119611,156.63631246,0.000179,2]
[400359295,1767433201477,300.0,0.00017999,2]
[400359296,1767433201779,531.23819173,0.00017999,2]
[400359297,1767433201808,668.76180827,0.00017999,2]
[400359298,1767433393370,191.0,0.00017999,2]
[400359299,1767433423536,653.56,0.00025782,120]
[400359300,1767433423591,653.56,0.00029005,120]
[400359301,1767433423786,653.56,0.00032228,120]
[400359313,1767433772984,250.0,0.00017,2]
[400359325,1767433831868,-324.27327818,0.00018,2]
[400359327,1767433831880,-253.75974854,0.00018,2]
[400359328,1767433832024,-3767.42126143,0.00018,2]
[400359329,1767433832077,-1242.16060208,0.00018,2]
[400359330,1767433832089,-3331.32978064,0.00018,2]
[400359338,1767433838076,-1431.50704703,0.00018,2]
[400359339,1767433838087,-304.0,0.00018,2]
[400359340,1767433838097,-1295.42147498,0.000181,2]
[400359509,1767433840127,-365.1361538,0.000181,2]
[400359531,1767433840394,-114.49584374,0.000181,2]
[400359533,1767433840404,-391.10958555,0.00019642,2]
[400359535,1767433840416,-398.52112028,0.00019642,2]
[400359538,1767433840429,-469.36929417,0.00019642,2]
[400359540,1767433840439,-787.01073899,0.00019642,2]
[400359884,1767433846033,-471.98926101,0.00019642,2]
[400359885,1767433846043,-1259.0,0.00019642,2]
[400359886,1767433846053,-1259.0,0.00019642,2]
[400359887,1767433846063,-1254.0,0.00019642,2]
[400359888,1767433846072,-267.0,0.00019799,2]
[400359889,1767433846082,-250.0,0.000198,2]
[400359890,1767433846091,-200.81579164,0.000198,2]
[400359891,1767433846296,-49.18420836,0.000198,2]
[400359892,1767433846305,-266.43601868,0.000198,2]
[400359893,1767433846315,-349.33,0.00020187,2]
[400359894,1767433846325,-151.0,0.00021393,2]
[400359895,1767433846335,-151.0,0.00021415,2]
[400359896,1767433846345,-151.0,0.00021484,2]
[400359897,1767433846354,-151.0,0.00021484,2]
[400359898,1767433846363,-500.0,0.0002263,2]
[400359899,1767433846372,-6618.25,0.00023387,2]
[400359900,1767433846382,-155.0,0.000237,2]
[400359901,1767433846393,-500.0,0.00025452,2]
[400359902,1767433846402,-175.93,0.00025524,2]
[400359903,1767433846411,-5000.0,0.00025655,2]
[400359904,1767433846421,-1307.49,0.00025786,2]
[400359905,1767433846431,-206.18435526,0.00026638,2]
[400359906,1767433846441,-349.33,0.00026676,2]
[400359907,1767433846450,-4532.7757,0.000267,2]
[400359909,1767433846460,-1330.0295,0.00027087,2]
[400359911,1767433846469,-201.27918252,0.00027087,9]
[400359912,1767433846478,-201.27918252,0.00027197,9]
[400359913,1767433846488,-171.41975341,0.00027197,2]
[400359914,1767433846497,-2254.966,0.0002726,16]
[400359915,1767433846507,-156.825,0.0002726,16]
[400359916,1767433846516,-500.0,0.00027286,2]
[400359917,1767433846525,-556.58049313,0.00027286,2]
[400359918,1767433846534,-501.53116225,0.00027286,2]
[400359919,1767433846543,-500.0,0.00027286,2]
[400359920,1767433846552,-500.0,0.00027286,2]
[400359921,1767433846562,-319.6320493,0.00027286,2]
[400359922,1767433846572,-500.0,0.00027286,2]
[400359923,1767433846581,-500.0,0.00027286,2]
[400359924,1767433846591,-500.0,0.00027286,2]
[400359925,1767433846601,-158.69446303,0.00027286,2]
[400359926,1767433846611,-222.1811861,0.00027286,2]
[400359927,1767433846621,-500.0,0.00027286,2]
[400359928,1767433846631,-500.0,0.00027286,2]
[400359929,1767433846640,-500.0,0.00027286,2]
[400359930,1767433846650,-26821.57099171,0.00027287,3]
[400359931,1767433846663,-68919.90595098,0.00027287,3]
[400359951,1767434224063,153.54,0.00013209,2]
[400359967,1767434540247,600.0,0.00032,120]
[400359970,1767434894271,1500.0,0.00025822,120]
[400360038,1767434973149,-297.0,0.00018,2]
[400360039,1767434973171,-195.0,0.000195,2]
[400360040,1767434973192,-195.0,0.000198,2]
[400360041,1767434973213,-250.0,0.000198,2]
[400360042,1767434973234,-700.0,0.00021,2]
[400360043,1767434973255,-336.0,0.00021,2]
[400360044,1767434973276,-151.0,0.00022104,2]
[400360045,1767434973297,-151.0,0.00022104,2]
[400360046,1767434973332,-151.0,0.00022129,2]
[400360047,1767434973355,-63.50966349,0.00022129,2]
[400360090,1767435032189,-151.0,0.00022596,2]
[400360091,1767435032199,-151.0,0.00022596,2]
[400360092,1767435032209,-151.0,0.00022642,2]
[400360093,1767435032219,-32.01153519,0.00022642,2]
[400360094,1767435032295,-118.98846481,0.00022642,2]
[400360095,1767435032306,-151.0,0.00022649,2]
[400360096,1767435032315,-32.01153519,0.00022649,2]
[400360101,1767435032452,-118.98846481,0.00022649,2]
[400360102,1767435032462,-427.52336117,0.000238,2]
[400360105,1767435038205,-151.0,0.00022595,2]
[400360106,1767435038216,-489.81980729,0.000238,2]
[400360107,1767435038227,-240.01390984,0.00024919,2]
[400360108,1767435038237,-166.66,0.00025705,30]